Department,Entity, Transaction Date, Expense Type, Expense Area, Supplier Name,Transaction number, Amount, Invoice Description
DFID,CSC,01/06/2018,Tuition Fee,Award Costs,University of Aberdeen,PIN033325,12560,
DFID,CSC,01/06/2018,Award Support Costs,Award Costs,University of Aberdeen,PIN033325,8000,
BEIS,CSC,01/06/2018,Award Support Costs,Award Costs,The University of Edinburgh,PIN033326,2500,
DFE,CSC,01/06/2018,Scholar Travel,Award Costs,The University of Edinburgh,PIN033327,1711.93,
DFE,CSC,01/06/2018,Scholar Allowances,Award Costs,The University of Edinburgh,PIN033327,50,
DFE,CSC,01/06/2018,Scholar Stipend,Award Costs,The University of Edinburgh,PIN033327,12780,
BEIS,CSC,01/06/2018,Award Support Costs,Award Costs,University of East Anglia,PIN033328,2500,
BEIS,CSC,01/06/2018,Award Support Costs,Award Costs,University of East Anglia,PIN033329,2500,
BEIS,CSC,01/06/2018,Award Support Costs,Award Costs,Heriot Watt University,PIN033330,2500,
BEIS,CSC,01/06/2018,Award Support Costs,Award Costs,Lond Sch Hygiene & Tropical Me,PIN033331,2500,
DFID,CSC,01/06/2018,Tuition Fee,Award Costs,University of Leicester,PIN033333,14600,
BEIS,CSC,01/06/2018,Award Support Costs,Award Costs,The University of Nottingham,PIN033334,2500,
BEIS,CSC,01/06/2018,Award Support Costs,Award Costs,Queens University Belfast,PIN033335,2500,
BEIS,CSC,01/06/2018,Award Support Costs,Award Costs,University of Southampton,PIN033336,2500,
BEIS,CSC,01/06/2018,Award Support Costs,Award Costs,University of Sheffield,PIN033337,2500,
BEIS,CSC,01/06/2018,Award Support Costs,Award Costs,University of Sheffield,PIN033338,2500,
DFID,CSC,01/06/2018,Award Support Costs,Award Costs,University of Surrey,PIN033339,2000,
BEIS,CSC,01/06/2018,Award Support Costs,Award Costs,The University of Warwick,PIN033340,2500,
BEIS,CSC,01/06/2018,Award Support Costs,Award Costs,The University of York,PIN033341,2500,
DFID,CSC,01/06/2018,Scholar Allowances,Award Costs,Scholar,PIN033348,600,
DFID,CSC,01/06/2018,Scholar Allowances,Award Costs,Scholar,PIN033352,600,
DFID,CSC,08/06/2018,Printing,Admin Costs,TFW Printers,PIN033361,3260,
DFID,CSC,08/06/2018,Scholar Engagement,Programme Costs,AccessEd Ltd,PIN033363,100,
DFID,CSC,08/06/2018,Scholar Engagement,Programme Costs,AccessEd Ltd,PIN033363,500,
DFID,CSC,08/06/2018,Scholar Engagement,Programme Costs,The University of Warwick,PIN033364,598.5,
BEIS,CSC,08/06/2018,Scholar Allowances,Award Costs,Scholar,PIN033366,600,
BEIS,CSC,08/06/2018,Scholar Allowances,Award Costs,Scholar,PIN033367,1000,
BEIS,CSC,08/06/2018,Award Support Costs,Award Costs,University of Bath,PIN033369,2500,
BEIS,CSC,08/06/2018,Award Support Costs,Award Costs,University of Bristol,PIN033370,2500,
BEIS,CSC,08/06/2018,Award Support Costs,Award Costs,University of Bristol,PIN033371,2500,
BEIS,CSC,08/06/2018,Award Support Costs,Award Costs,The University of Edinburgh,PIN033372,2500,
BEIS,CSC,08/06/2018,Award Support Costs,Award Costs,The University of Edinburgh,PIN033373,2500,
BEIS,CSC,08/06/2018,Award Support Costs,Award Costs,University of Liverpool,PIN033374,2500,
BEIS,CSC,08/06/2018,Award Support Costs,Award Costs,Queen Mary University of London,PIN033375,2500,
BEIS,CSC,08/06/2018,Award Support Costs,Award Costs,University of Surrey,PIN033376,2500,
BEIS,CSC,08/06/2018,Award Support Costs,Award Costs,The University of Warwick,PIN033377,2500,
DFID,CSC,08/06/2018,Engagement,Admin Costs,Commission Chair,PIN033388,2975.67,
DFID,CSC,08/06/2018,Commission Meetings,Admin Costs,Commission Chair,PIN033388,149.15,
DFID,CSC,08/06/2018,Commission Meetings,Admin Costs,Commission Chair,PIN033388,296.75,
DFID,CSC,08/06/2018,Engagement,Programme Costs,Commission Chair,PIN033388,90.1,
DFID,CSC,08/06/2018,Commission Meetings,Admin Costs,Commission Chair,PIN033388,754.45,
DFID,CSC,08/06/2018,Commission Meetings,Admin Costs,Commission Chair,PIN033388,197.75,
DFID,CSC,08/06/2018,Scholar Engagement,Programme Costs,Commission Chair,PIN033388,47.85,
DFID,CSC,15/06/2018,Scholar Engagement,Programme Costs,M. BOTTING LTD,PIN033392,637.69,
BEIS,CSC,15/06/2018,Scholar Allowances,Award Costs,Scholar,PIN033394,1000,
DFID,CSC,15/06/2018,Scholar Allowances,Award Costs,Scholar,PIN033395,600,
DFID,CSC,15/06/2018,Reimbursements,Award Costs,Scholar,PIN033400,590.61,
DFID,CSC,15/06/2018,Scholar Allowances,Award Costs,Scholar,PIN033401,600,
DFID,CSC,15/06/2018,Scholar Allowances,Award Costs,Scholar,PIN033402,586.12,
DFID,CSC,15/06/2018,Scholar Allowances,Award Costs,Scholar,PIN033405,600,
BEIS,CSC,15/06/2018,Award Support Costs,Award Costs,University of Bath,PIN033418,2500,
DFID,CSC,15/06/2018,Scholar Travel,Award Costs,The Cambridge Commonwealth Trust,PIN033419,23,
DFID,CSC,15/06/2018,Scholar Travel,Award Costs,The Cambridge Commonwealth Trust,PIN033419,1369.11,
DFID,CSC,15/06/2018,Scholar Allowances,Award Costs,The Cambridge Commonwealth Trust,PIN033419,176,
DFID,CSC,15/06/2018,Visa Costs,Award Costs,The Cambridge Commonwealth Trust,PIN033419,416.24,
DFID,CSC,15/06/2018,Scholar Travel,Award Costs,The Cambridge Commonwealth Trust,PIN033419,113.8,
DFID,CSC,15/06/2018,Scholar Travel,Award Costs,The Cambridge Commonwealth Trust,PIN033419,5864.99,
DFID,CSC,15/06/2018,Tuition Fee,Award Costs,The Cambridge Commonwealth Trust,PIN033420,-690.89,
BEIS,CSC,15/06/2018,Award Support Costs,Award Costs,University of Durham,PIN033421,2500,
BEIS,CSC,15/06/2018,Award Support Costs,Award Costs,The Institute of Cancer Research,PIN033422,2500,
BEIS,CSC,15/06/2018,Award Support Costs,Award Costs,University of Leicester,PIN033423,2500,
BEIS,CSC,15/06/2018,Award Support Costs,Award Costs,University of Leicester,PIN033423,2500,
BEIS,CSC,15/06/2018,Award Support Costs,Award Costs,Nottingham Trent University,PIN033424,2500,
DFID,CSC,15/06/2018,Tuition Fee,Award Costs,Oriel College Oxford,PIN033425,2014,
DFID,CSC,15/06/2018,Tuition Fee,Award Costs,Oriel College Oxford,PIN033425,4648,
DFID,CSC,15/06/2018,Tuition Fee,Award Costs,Oriel College Oxford,PIN033426,-3867,
DFID,CSC,15/06/2018,Tuition Fee,Award Costs,Oriel College Oxford,PIN033427,3021,
DFID,CSC,15/06/2018,Tuition Fee,Award Costs,Oriel College Oxford,PIN033427,19335,
DFID,CSC,15/06/2018,Award Support Costs,Award Costs,University of Reading,PIN033428,800,
DFID,CSC,15/06/2018,Tuition Fee,Award Costs,University of Reading,PIN033428,5740,
DFID,CSC,15/06/2018,Tuition Fee,Award Costs,University of Strathclyde,PIN033430,15600,
BEIS,CSC,15/06/2018,Award Support Costs,Award Costs,The University of York,PIN033431,2500,
DFID,CSC,15/06/2018,Scholar Engagement,Programme Costs,Woburn House Conference Centre,PIN033433,100,
DFID,CSC,15/06/2018,Scholar Engagement,Programme Costs,Woburn House Conference Centre,PIN033433,500,
DFID,CSC,22/06/2018,Scholar Engagement,Programme Costs,Cumberland Lodge Enterprises Limited,PIN033438,5267.65,
DFID,CSC,22/06/2018,Tuition Fee,Award Costs,University of Strathclyde,PIN033446,1250,
DFID,CSC,22/06/2018,Award Support Costs,Award Costs,Addenbrooke's Charitable Trust,PIN033447,2000,
BEIS,CSC,22/06/2018,Award Support Costs,Award Costs,Imperial College London,PIN033448,2500,
DFID,CSC,22/06/2018,Tuition Fee,Award Costs,University of Leicester,PIN033449,10533.6,
DFID,CSC,22/06/2018,Award Support Costs,Award Costs,Manchester University NHS Foundation Trust,PIN033450,2000,
DFID,CSC,22/06/2018,Award Support Costs,Award Costs,University of Newcastle upon Tyne,PIN033451,2400,
BEIS,CSC,22/06/2018,Award Support Costs,Award Costs,Swansea University,PIN033452,2500,
DFID,CSC,22/06/2018,Scholar Allowances,Award Costs,Scholar,PIN033458,600,
DFID,CSC,22/06/2018,Scholar Allowances,Award Costs,Scholar,PIN033461,600,
DFID,CSC,22/06/2018,Bank Charges,Award Costs,MasterCard Prepaid Management Services Ltd,PIN033470,675,
DFID,CSC,28/06/2018,Scholar Stipend,Award Costs,Scholar,PIN033472,3195,
BEIS,CSC,28/06/2018,Scholar Stipend,Award Costs,Scholar,PIN033473,4881,
BEIS,CSC,28/06/2018,Scholar Stipend,Award Costs,Scholar,PIN033474,6057,
BEIS,CSC,28/06/2018,Scholar Stipend,Award Costs,Scholar,PIN033475,4881,
BEIS,CSC,28/06/2018,Scholar Stipend,Award Costs,Scholar,PIN033476,6057,
DFID,CSC,28/06/2018,Scholar Stipend,Award Costs,Scholar,PIN033477,2612,
DFID,CSC,28/06/2018,Scholar Stipend,Award Costs,Scholar,PIN033478,2479.9,
DFID,CSC,28/06/2018,Scholar Stipend,Award Costs,Scholar,PIN033479,2269.96,
DFID,CSC,28/06/2018,Scholar Stipend,Award Costs,Scholar,PIN033480,3195,
DFID,CSC,28/06/2018,Scholar Stipend,Award Costs,Scholar,PIN033481,2130,
DFID,CSC,28/06/2018,Scholar Stipend,Award Costs,Scholar,PIN033482,3195,
DFID,CSC,28/06/2018,Scholar Stipend,Award Costs,Scholar,PIN033483,3195,
DFID,CSC,28/06/2018,Scholar Stipend,Award Costs,Scholar,PIN033484,2695.16,
DFID,CSC,28/06/2018,Scholar Stipend,Award Costs,Scholar,PIN033485,3918,
DFID,CSC,28/06/2018,Scholar Stipend,Award Costs,Scholar,PIN033486,3195,
DFID,CSC,28/06/2018,Scholar Stipend,Award Costs,Scholar,PIN033487,1597.5,
DFID,CSC,28/06/2018,Scholar Stipend,Award Costs,Scholar,PIN033488,1065,
DFID,CSC,28/06/2018,Scholar Stipend,Award Costs,Scholar,PIN033489,3918,
DFID,CSC,28/06/2018,Scholar Stipend,Award Costs,Scholar,PIN033490,3195,
DFID,CSC,28/06/2018,Scholar Stipend,Award Costs,Scholar,PIN033491,3918,
DFID,CSC,28/06/2018,Scholar Stipend,Award Costs,Scholar,PIN033492,2130,
DFID,CSC,28/06/2018,Scholar Stipend,Award Costs,Scholar,PIN033493,2130,
DFID,CSC,28/06/2018,Scholar Stipend,Award Costs,Scholar,PIN033494,3195,
DFID,CSC,28/06/2018,Scholar Stipend,Award Costs,Scholar,PIN033495,2612,
DFID,CSC,28/06/2018,Scholar Stipend,Award Costs,Scholar,PIN033496,3918,
DFID,CSC,28/06/2018,Scholar Stipend,Award Costs,Scholar,PIN033497,2130,
DFID,CSC,28/06/2018,Scholar Stipend,Award Costs,Scholar,PIN033498,2114.69,
DFID,CSC,28/06/2018,Scholar Stipend,Award Costs,Scholar,PIN033499,3918,
DFID,CSC,28/06/2018,Scholar Stipend,Award Costs,Scholar,PIN033500,2130,
DFID,CSC,28/06/2018,Scholar Stipend,Award Costs,Scholar,PIN033501,3918,
DFID,CSC,28/06/2018,Scholar Stipend,Award Costs,Scholar,PIN033502,1065,
DFID,CSC,28/06/2018,Scholar Stipend,Award Costs,Scholar,PIN033503,3195,
DFID,CSC,28/06/2018,Scholar Stipend,Award Costs,Scholar,PIN033504,3195,
DFID,CSC,28/06/2018,Scholar Stipend,Award Costs,Scholar,PIN033505,3918,
DFID,CSC,28/06/2018,Scholar Stipend,Award Costs,Scholar,PIN033506,3195,
DFID,CSC,28/06/2018,Scholar Stipend,Award Costs,Scholar,PIN033507,1554.86,
DFID,CSC,28/06/2018,Scholar Stipend,Award Costs,Scholar,PIN033508,1306,
DFID,CSC,28/06/2018,Scholar Stipend,Award Costs,Scholar,PIN033509,3195,
DFID,CSC,28/06/2018,Scholar Stipend,Award Costs,Scholar,PIN033510,1887.92,
DFID,CSC,28/06/2018,Scholar Stipend,Award Costs,Scholar,PIN033511,1065,
DFID,CSC,28/06/2018,Scholar Stipend,Award Costs,Scholar,PIN033512,3918,
DFID,CSC,28/06/2018,Scholar Stipend,Award Costs,Scholar,PIN033513,1065,
DFID,CSC,28/06/2018,Scholar Stipend,Award Costs,Scholar,PIN033514,2934.76,
DFID,CSC,28/06/2018,Scholar Stipend,Award Costs,Scholar,PIN033515,1414.9,
DFID,CSC,28/06/2018,Scholar Stipend,Award Costs,Scholar,PIN033516,1904.75,
DFID,CSC,28/06/2018,Scholar Stipend,Award Costs,Scholar,PIN033517,2479.9,
DFID,CSC,28/06/2018,Scholar Stipend,Award Costs,Scholar,PIN033518,2479.9,
DFID,CSC,28/06/2018,Scholar Stipend,Award Costs,Scholar,PIN033519,3195,
DFID,CSC,28/06/2018,Scholar Stipend,Award Costs,Scholar,PIN033520,3195,
DFID,CSC,28/06/2018,Scholar Stipend,Award Costs,Scholar,PIN033521,3641.78,
DFID,CSC,28/06/2018,Scholar Stipend,Award Costs,Scholar,PIN033522,3918,
DFID,CSC,28/06/2018,Scholar Stipend,Award Costs,Scholar,PIN033523,3918,
DFID,CSC,28/06/2018,Scholar Stipend,Award Costs,Scholar,PIN033524,3195,
DFID,CSC,28/06/2018,Scholar Stipend,Award Costs,Scholar,PIN033525,3195,
DFID,CSC,28/06/2018,Scholar Stipend,Award Costs,Scholar,PIN033526,3195,
DFID,CSC,28/06/2018,Scholar Stipend,Award Costs,Scholar,PIN033527,3195,
DFID,CSC,28/06/2018,Scholar Stipend,Award Costs,Scholar,PIN033528,3195,
DFID,CSC,28/06/2018,Scholar Stipend,Award Costs,Scholar,PIN033529,3918,
DFID,CSC,28/06/2018,Scholar Stipend,Award Costs,Scholar,PIN033530,3195,
DFID,CSC,28/06/2018,Scholar Stipend,Award Costs,Scholar,PIN033531,3195,
DFID,CSC,28/06/2018,Scholar Stipend,Award Costs,Scholar,PIN033532,3195,
DFID,CSC,28/06/2018,Scholar Stipend,Award Costs,Scholar,PIN033533,3195,
DFID,CSC,28/06/2018,Scholar Stipend,Award Costs,Scholar,PIN033534,3918,
DFID,CSC,28/06/2018,Scholar Stipend,Award Costs,Scholar,PIN033535,3918,
DFID,CSC,28/06/2018,Scholar Stipend,Award Costs,Scholar,PIN033536,3918,
DFID,CSC,28/06/2018,Scholar Stipend,Award Costs,Scholar,PIN033537,3918,
DFID,CSC,28/06/2018,Scholar Stipend,Award Costs,Scholar,PIN033538,3641.78,
BEIS,CSC,28/06/2018,Scholar Stipend,Award Costs,Scholar,PIN033539,4881,
BEIS,CSC,28/06/2018,Scholar Stipend,Award Costs,Scholar,PIN033540,4881,
DFID,CSC,28/06/2018,Scholar Stipend,Award Costs,Scholar,PIN033541,944.72,
DFID,CSC,28/06/2018,Scholar Stipend,Award Costs,Scholar,PIN033542,3195,
DFID,CSC,28/06/2018,Scholar Stipend,Award Costs,Scholar,PIN033543,3195,
DFID,CSC,28/06/2018,Scholar Stipend,Award Costs,Scholar,PIN033544,3195,
DFID,CSC,28/06/2018,Scholar Stipend,Award Costs,Scholar,PIN033545,2829.79,
DFID,CSC,28/06/2018,Scholar Stipend,Award Costs,Scholar,PIN033546,1065,
BEIS,CSC,28/06/2018,Scholar Stipend,Award Costs,Scholar,PIN033547,4881,
DFID,CSC,28/06/2018,Scholar Stipend,Award Costs,Scholar,PIN033548,1065,
DFID,CSC,28/06/2018,Scholar Stipend,Award Costs,Scholar,PIN033549,944.72,
DFID,CSC,28/06/2018,Scholar Stipend,Award Costs,Scholar,PIN033550,2130,
DFID,CSC,28/06/2018,Scholar Stipend,Award Costs,Scholar,PIN033551,3195,
DFID,CSC,28/06/2018,Scholar Stipend,Award Costs,Scholar,PIN033552,3195,
DFID,CSC,28/06/2018,Scholar Stipend,Award Costs,Scholar,PIN033553,3195,
DFID,CSC,28/06/2018,Scholar Stipend,Award Costs,Scholar,PIN033554,3195,
DFID,CSC,28/06/2018,Scholar Stipend,Award Costs,Scholar,PIN033555,3195,
DFID,CSC,28/06/2018,Scholar Stipend,Award Costs,Scholar,PIN033556,3195,
DFID,CSC,28/06/2018,Scholar Stipend,Award Costs,Scholar,PIN033557,2724.83,
DFID,CSC,28/06/2018,Scholar Stipend,Award Costs,Scholar,PIN033558,2794.8,
DFID,CSC,28/06/2018,Scholar Stipend,Award Costs,Scholar,PIN033559,3195,
DFID,CSC,28/06/2018,Scholar Stipend,Award Costs,Scholar,PIN033560,3195,
DFID,CSC,28/06/2018,Scholar Stipend,Award Costs,Scholar,PIN033561,3195,
DFID,CSC,28/06/2018,Scholar Stipend,Award Costs,Scholar,PIN033562,1597.5,
DFID,CSC,28/06/2018,Scholar Stipend,Award Costs,Scholar,PIN033563,3195,
DFID,CSC,28/06/2018,Scholar Stipend,Award Costs,Scholar,PIN033564,1627,
DFID,CSC,28/06/2018,Scholar Stipend,Award Costs,Scholar,PIN033565,3195,
DFID,CSC,28/06/2018,Scholar Stipend,Award Costs,Scholar,PIN033566,3195,
DFID,CSC,28/06/2018,Scholar Stipend,Award Costs,Scholar,PIN033567,3195,
DFID,CSC,28/06/2018,Scholar Stipend,Award Costs,Scholar,PIN033568,3195,
DFID,CSC,28/06/2018,Scholar Stipend,Award Costs,Scholar,PIN033569,3195,
DFID,CSC,28/06/2018,Scholar Stipend,Award Costs,Scholar,PIN033570,3195,
DFID,CSC,28/06/2018,Scholar Stipend,Award Costs,Scholar,PIN033571,3195,
DFID,CSC,28/06/2018,Scholar Stipend,Award Costs,Scholar,PIN033572,3195,
DFID,CSC,28/06/2018,Scholar Stipend,Award Costs,Scholar,PIN033573,3918,
DFID,CSC,28/06/2018,Scholar Stipend,Award Costs,Scholar,PIN033574,3004.74,
DFID,CSC,28/06/2018,Scholar Stipend,Award Costs,Scholar,PIN033575,3195,
DFID,CSC,28/06/2018,Scholar Stipend,Award Costs,Scholar,PIN033576,3195,
DFID,CSC,28/06/2018,Scholar Stipend,Award Costs,Scholar,PIN033577,3641.78,
DFID,CSC,28/06/2018,Scholar Stipend,Award Costs,Scholar,PIN033578,2479.9,
DFID,CSC,28/06/2018,Scholar Stipend,Award Costs,Scholar,PIN033579,3195,
DFID,CSC,28/06/2018,Scholar Stipend,Award Costs,Scholar,PIN033580,3918,
DFID,CSC,28/06/2018,Scholar Stipend,Award Costs,Scholar,PIN033581,3555.97,
DFID,CSC,28/06/2018,Scholar Stipend,Award Costs,Scholar,PIN033582,3195,
DFID,CSC,28/06/2018,Scholar Stipend,Award Costs,Scholar,PIN033583,3195,
DFID,CSC,28/06/2018,Scholar Stipend,Award Costs,Scholar,PIN033584,3195,
DFID,CSC,28/06/2018,Scholar Stipend,Award Costs,Scholar,PIN033585,2619.86,
DFID,CSC,28/06/2018,Scholar Stipend,Award Costs,Scholar,PIN033586,3195,
DFID,CSC,28/06/2018,Scholar Stipend,Award Costs,Scholar,PIN033587,2479.9,
DFID,CSC,28/06/2018,Scholar Stipend,Award Costs,Scholar,PIN033588,3195,
DFID,CSC,28/06/2018,Scholar Stipend,Award Costs,Scholar,PIN033589,2130,
DFID,CSC,28/06/2018,Scholar Stipend,Award Costs,Scholar,PIN033590,3195,
DFID,CSC,28/06/2018,Scholar Stipend,Award Costs,Scholar,PIN033591,2130,
DFID,CSC,28/06/2018,Scholar Stipend,Award Costs,Scholar,PIN033592,3195,
DFID,CSC,28/06/2018,Scholar Stipend,Award Costs,Scholar,PIN033593,2130,
DFID,CSC,28/06/2018,Scholar Stipend,Award Costs,Scholar,PIN033594,2130,
DFID,CSC,28/06/2018,Scholar Stipend,Award Costs,Scholar,PIN033595,3195,
DFID,CSC,28/06/2018,Scholar Stipend,Award Costs,Scholar,PIN033596,2130,
DFID,CSC,28/06/2018,Scholar Stipend,Award Costs,Scholar,PIN033597,2130,
DFID,CSC,28/06/2018,Scholar Stipend,Award Costs,Scholar,PIN033598,3918,
DFID,CSC,28/06/2018,Scholar Stipend,Award Costs,Scholar,PIN033599,3195,
DFID,CSC,28/06/2018,Scholar Stipend,Award Costs,Scholar,PIN033600,3195,
DFID,CSC,28/06/2018,Scholar Stipend,Award Costs,Scholar,PIN033601,3918,
DFID,CSC,28/06/2018,Scholar Stipend,Award Costs,Scholar,PIN033602,3195,
DFID,CSC,28/06/2018,Scholar Stipend,Award Costs,Scholar,PIN033603,3195,
DFID,CSC,28/06/2018,Scholar Stipend,Award Costs,Scholar,PIN033604,2360.76,
DFID,CSC,28/06/2018,Scholar Stipend,Award Costs,Scholar,PIN033605,3195,
DFID,CSC,28/06/2018,Scholar Stipend,Award Costs,Scholar,PIN033606,3856.32,
DFID,CSC,28/06/2018,Scholar Stipend,Award Costs,Scholar,PIN033607,3918,
DFID,CSC,28/06/2018,Scholar Stipend,Award Costs,Scholar,PIN033608,3641.78,
DFID,CSC,28/06/2018,Scholar Stipend,Award Costs,Scholar,PIN033609,1309.93,
DFID,CSC,28/06/2018,Scholar Stipend,Award Costs,Scholar,PIN033610,3918,
DFID,CSC,28/06/2018,Scholar Stipend,Award Costs,Scholar,PIN033611,3918,
DFID,CSC,28/06/2018,Scholar Stipend,Award Costs,Scholar,PIN033612,3195,
BEIS,CSC,28/06/2018,Scholar Stipend,Award Costs,Scholar,PIN033613,4881,
BEIS,CSC,28/06/2018,Scholar Stipend,Award Costs,Scholar,PIN033614,4881,
BEIS,CSC,28/06/2018,Scholar Stipend,Award Costs,Scholar,PIN033615,3254,
BEIS,CSC,28/06/2018,Scholar Stipend,Award Costs,Scholar,PIN033616,4881,
BEIS,CSC,28/06/2018,Scholar Stipend,Award Costs,Scholar,PIN033617,4881,
BEIS,CSC,28/06/2018,Scholar Stipend,Award Costs,Scholar,PIN033618,4881,
BEIS,CSC,28/06/2018,Scholar Stipend,Award Costs,Scholar,PIN033619,4881,
BEIS,CSC,28/06/2018,Scholar Stipend,Award Costs,Scholar,PIN033620,4881,
BEIS,CSC,28/06/2018,Scholar Stipend,Award Costs,Scholar,PIN033621,4881,
BEIS,CSC,28/06/2018,Scholar Stipend,Award Costs,Scholar,PIN033622,4881,
BEIS,CSC,28/06/2018,Scholar Stipend,Award Costs,Scholar,PIN033623,6057,
BEIS,CSC,28/06/2018,Scholar Stipend,Award Costs,Scholar,PIN033624,4881,
BEIS,CSC,28/06/2018,Scholar Stipend,Award Costs,Scholar,PIN033625,4881,
BEIS,CSC,28/06/2018,Scholar Stipend,Award Costs,Scholar,PIN033626,4881,
BEIS,CSC,28/06/2018,Scholar Stipend,Award Costs,Scholar,PIN033627,4881,
BEIS,CSC,28/06/2018,Scholar Stipend,Award Costs,Scholar,PIN033628,6057,
BEIS,CSC,28/06/2018,Scholar Stipend,Award Costs,Scholar,PIN033629,4881,
DFID,CSC,28/06/2018,Scholar Stipend,Award Costs,Scholar,PIN033630,3195,
DFID,CSC,28/06/2018,Scholar Stipend,Award Costs,Scholar,PIN033631,3195,
DFID,CSC,28/06/2018,Scholar Stipend,Award Costs,Scholar,PIN033632,3195,
DFID,CSC,28/06/2018,Scholar Stipend,Award Costs,Scholar,PIN033633,2612,
DFID,CSC,28/06/2018,Scholar Stipend,Award Costs,Scholar,PIN033634,3195,
DFID,CSC,28/06/2018,Scholar Stipend,Award Costs,Scholar,PIN033635,3195,
DFID,CSC,28/06/2018,Scholar Stipend,Award Costs,Scholar,PIN033636,3195,
DFID,CSC,28/06/2018,Scholar Stipend,Award Costs,Scholar,PIN033637,1065,
DFID,CSC,28/06/2018,Scholar Stipend,Award Costs,Scholar,PIN033638,1065,
DFID,CSC,28/06/2018,Scholar Stipend,Award Costs,Scholar,PIN033639,3195,
DFID,CSC,28/06/2018,Scholar Stipend,Award Costs,Scholar,PIN033640,2934.76,
DFID,CSC,28/06/2018,Scholar Stipend,Award Costs,Scholar,PIN033641,3074.72,
DFID,CSC,28/06/2018,Scholar Stipend,Award Costs,Scholar,PIN033642,2130,
DFID,CSC,28/06/2018,Scholar Stipend,Award Costs,Scholar,PIN033643,3918,
DFID,CSC,28/06/2018,Scholar Stipend,Award Costs,Scholar,PIN033644,1065,
DFID,CSC,28/06/2018,Scholar Stipend,Award Costs,Scholar,PIN033645,3195,
DFID,CSC,28/06/2018,Scholar Stipend,Award Costs,Scholar,PIN033646,1065,
DFID,CSC,28/06/2018,Scholar Stipend,Award Costs,Scholar,PIN033647,1065,
DFID,CSC,28/06/2018,Scholar Stipend,Award Costs,Scholar,PIN033648,1060.19,
DFID,CSC,28/06/2018,Scholar Stipend,Award Costs,Scholar,PIN033649,1306,
DFID,CSC,28/06/2018,Scholar Stipend,Award Costs,Scholar,PIN033650,3195,
DFID,CSC,28/06/2018,Scholar Stipend,Award Costs,Scholar,PIN033651,3195,
DFID,CSC,28/06/2018,Scholar Stipend,Award Costs,Scholar,PIN033652,1065,
DFID,CSC,28/06/2018,Scholar Stipend,Award Costs,Scholar,PIN033653,3195,
DFID,CSC,28/06/2018,Scholar Stipend,Award Costs,Scholar,PIN033654,3195,
DFID,CSC,28/06/2018,Scholar Stipend,Award Costs,Scholar,PIN033655,2479.9,
DFID,CSC,28/06/2018,Scholar Stipend,Award Costs,Scholar,PIN033656,2479.9,
DFID,CSC,28/06/2018,Scholar Stipend,Award Costs,Scholar,PIN033657,2514.89,
DFID,CSC,28/06/2018,Scholar Stipend,Award Costs,Scholar,PIN033658,2969.75,
BEIS,CSC,28/06/2018,Scholar Stipend,Award Costs,Scholar,PIN033659,4881,
DFID,CSC,28/06/2018,Scholar Stipend,Award Costs,Scholar,PIN033660,3195,
DFID,CSC,28/06/2018,Scholar Stipend,Award Costs,Scholar,PIN033661,1597.5,
DFID,CSC,28/06/2018,Scholar Stipend,Award Costs,Scholar,PIN033662,3195,
DFID,CSC,28/06/2018,Scholar Stipend,Award Costs,Scholar,PIN033663,2612,
DFID,CSC,28/06/2018,Scholar Stipend,Award Costs,Scholar,PIN033664,2130,
DFID,CSC,28/06/2018,Scholar Stipend,Award Costs,Scholar,PIN033665,2612,
DFID,CSC,28/06/2018,Scholar Stipend,Award Costs,Scholar,PIN033666,3195,
DFID,CSC,28/06/2018,Scholar Stipend,Award Costs,Scholar,PIN033667,1306,
DFID,CSC,28/06/2018,Scholar Stipend,Award Costs,Scholar,PIN033668,3195,
DFID,CSC,28/06/2018,Scholar Stipend,Award Costs,Scholar,PIN033669,1065,
DFID,CSC,28/06/2018,Scholar Stipend,Award Costs,Scholar,PIN033670,3195,
DFID,CSC,28/06/2018,Scholar Stipend,Award Costs,Scholar,PIN033671,3144.7,
DFID,CSC,28/06/2018,Scholar Stipend,Award Costs,Scholar,PIN033672,3641.78,
DFID,CSC,28/06/2018,Scholar Stipend,Award Costs,Scholar,PIN033673,2114.69,
DFID,CSC,28/06/2018,Scholar Stipend,Award Costs,Scholar,PIN033674,2969.75,
DFID,CSC,28/06/2018,Scholar Stipend,Award Costs,Scholar,PIN033675,3195,
DFID,CSC,28/06/2018,Scholar Stipend,Award Costs,Scholar,PIN033676,3195,
DFID,CSC,28/06/2018,Scholar Stipend,Award Costs,Scholar,PIN033677,3195,
BEIS,CSC,28/06/2018,Scholar Stipend,Award Costs,Scholar,PIN033678,4881,
DFID,CSC,28/06/2018,Scholar Stipend,Award Costs,Scholar,PIN033679,1065,
DFID,CSC,28/06/2018,Scholar Stipend,Award Costs,Scholar,PIN033680,3195,
DFID,CSC,28/06/2018,Scholar Stipend,Award Costs,Scholar,PIN033681,2130,
DFID,CSC,28/06/2018,Scholar Stipend,Award Costs,Scholar,PIN033682,1306,
DFID,CSC,28/06/2018,Scholar Stipend,Award Costs,Scholar,PIN033683,2130,
DFID,CSC,28/06/2018,Scholar Stipend,Award Costs,Scholar,PIN033684,3195,
DFID,CSC,28/06/2018,Scholar Stipend,Award Costs,Scholar,PIN033685,1675.13,
DFID,CSC,28/06/2018,Scholar Stipend,Award Costs,Scholar,PIN033686,2934.76,
DFID,CSC,28/06/2018,Scholar Stipend,Award Costs,Scholar,PIN033687,3195,
DFID,CSC,28/06/2018,Scholar Stipend,Award Costs,Scholar,PIN033688,3195,
DFID,CSC,28/06/2018,Scholar Stipend,Award Costs,Scholar,PIN033689,3195,
DFID,CSC,28/06/2018,Scholar Stipend,Award Costs,Scholar,PIN033690,3195,
DFID,CSC,28/06/2018,Scholar Stipend,Award Costs,Scholar,PIN033691,2829.79,
DFID,CSC,28/06/2018,Scholar Stipend,Award Costs,Scholar,PIN033692,2130,
DFID,CSC,28/06/2018,Scholar Stipend,Award Costs,Scholar,PIN033693,2724.83,
DFID,CSC,28/06/2018,Scholar Stipend,Award Costs,Scholar,PIN033694,3195,
DFID,CSC,28/06/2018,Scholar Stipend,Award Costs,Scholar,PIN033695,3195,
DFID,CSC,28/06/2018,Scholar Stipend,Award Costs,Scholar,PIN033696,2130,
DFID,CSC,28/06/2018,Scholar Stipend,Award Costs,Scholar,PIN033697,2130,
DFID,CSC,28/06/2018,Scholar Stipend,Award Costs,Scholar,PIN033698,3195,
DFID,CSC,28/06/2018,Scholar Stipend,Award Costs,Scholar,PIN033699,1065,
DFID,CSC,28/06/2018,Scholar Stipend,Award Costs,Scholar,PIN033700,3918,
DFID,CSC,28/06/2018,Scholar Stipend,Award Costs,Scholar,PIN033701,3195,
DFID,CSC,28/06/2018,Scholar Stipend,Award Costs,Scholar,PIN033702,3918,
DFID,CSC,28/06/2018,Scholar Stipend,Award Costs,Scholar,PIN033703,3195,
DFID,CSC,28/06/2018,Scholar Stipend,Award Costs,Scholar,PIN033704,2794.8,
DFID,CSC,28/06/2018,Scholar Stipend,Award Costs,Scholar,PIN033705,3513.06,
DFID,CSC,28/06/2018,Scholar Stipend,Award Costs,Scholar,PIN033706,3195,
DFID,CSC,28/06/2018,Scholar Stipend,Award Costs,Scholar,PIN033707,3195,
DFID,CSC,28/06/2018,Scholar Stipend,Award Costs,Scholar,PIN033708,3195,
DFID,CSC,28/06/2018,Scholar Stipend,Award Costs,Scholar,PIN033709,3918,
DFID,CSC,28/06/2018,Scholar Stipend,Award Costs,Scholar,PIN033710,3195,
DFID,CSC,28/06/2018,Scholar Stipend,Award Costs,Scholar,PIN033711,3195,
DFID,CSC,28/06/2018,Scholar Stipend,Award Costs,Scholar,PIN033712,3144.7,
DFID,CSC,28/06/2018,Scholar Stipend,Award Costs,Scholar,PIN033713,3641.78,
DFID,CSC,28/06/2018,Scholar Stipend,Award Costs,Scholar,PIN033714,2724.83,
DFID,CSC,28/06/2018,Scholar Stipend,Award Costs,Scholar,PIN033715,2130,
DFID,CSC,28/06/2018,Scholar Stipend,Award Costs,Scholar,PIN033716,3195,
DFID,CSC,28/06/2018,Scholar Stipend,Award Costs,Scholar,PIN033717,3195,
DFID,CSC,28/06/2018,Scholar Stipend,Award Costs,Scholar,PIN033718,3918,
DFID,CSC,28/06/2018,Scholar Stipend,Award Costs,Scholar,PIN033719,3195,
DFID,CSC,28/06/2018,Scholar Stipend,Award Costs,Scholar,PIN033720,2130,
DFID,CSC,28/06/2018,Scholar Stipend,Award Costs,Scholar,PIN033721,3195,
DFID,CSC,28/06/2018,Scholar Stipend,Award Costs,Scholar,PIN033722,2759.82,
DFID,CSC,28/06/2018,Scholar Stipend,Award Costs,Scholar,PIN033723,3918,
DFID,CSC,28/06/2018,Scholar Stipend,Award Costs,Scholar,PIN033724,1065,
DFID,CSC,28/06/2018,Scholar Stipend,Award Costs,Scholar,PIN033725,3195,
DFID,CSC,28/06/2018,Scholar Stipend,Award Costs,Scholar,PIN033726,2130,
DFID,CSC,28/06/2018,Scholar Stipend,Award Costs,Scholar,PIN033727,3918,
DFID,CSC,28/06/2018,Scholar Stipend,Award Costs,Scholar,PIN033728,2130,
DFID,CSC,28/06/2018,Scholar Stipend,Award Costs,Scholar,PIN033729,3195,
DFID,CSC,28/06/2018,Scholar Stipend,Award Costs,Scholar,PIN033730,2130,
DFID,CSC,28/06/2018,Scholar Stipend,Award Costs,Scholar,PIN033731,2130,
DFID,CSC,28/06/2018,Scholar Stipend,Award Costs,Scholar,PIN033732,3195,
DFID,CSC,28/06/2018,Scholar Stipend,Award Costs,Scholar,PIN033733,3195,
DFID,CSC,28/06/2018,Scholar Stipend,Award Costs,Scholar,PIN033734,3195,
DFID,CSC,28/06/2018,Scholar Stipend,Award Costs,Scholar,PIN033735,3195,
DFID,CSC,28/06/2018,Scholar Stipend,Award Costs,Scholar,PIN033736,3195,
DFID,CSC,28/06/2018,Scholar Stipend,Award Costs,Scholar,PIN033737,3195,
DFID,CSC,28/06/2018,Scholar Stipend,Award Costs,Scholar,PIN033738,1627,
DFID,CSC,28/06/2018,Scholar Stipend,Award Costs,Scholar,PIN033739,2019,
DFID,CSC,28/06/2018,Scholar Stipend,Award Costs,Scholar,PIN033740,1627,
DFID,CSC,28/06/2018,Scholar Stipend,Award Costs,Scholar,PIN033741,1680.45,
DFID,CSC,28/06/2018,Scholar Stipend,Award Costs,Scholar,PIN033742,1680.45,
DFID,CSC,28/06/2018,Scholar Stipend,Award Costs,Scholar,PIN033743,3195,
DFID,CSC,28/06/2018,Scholar Stipend,Award Costs,Scholar,PIN033744,3074.72,
DFID,CSC,28/06/2018,Scholar Stipend,Award Costs,Scholar,PIN033745,2130,
DFID,CSC,28/06/2018,Scholar Stipend,Award Costs,Scholar,PIN033746,3195,
DFID,CSC,28/06/2018,Scholar Stipend,Award Costs,Scholar,PIN033747,2130,
DFID,CSC,28/06/2018,Scholar Stipend,Award Costs,Scholar,PIN033748,3195,
DFID,CSC,28/06/2018,Scholar Stipend,Award Costs,Scholar,PIN033749,2130,
DFID,CSC,28/06/2018,Scholar Stipend,Award Costs,Scholar,PIN033750,2612,
DFID,CSC,28/06/2018,Scholar Stipend,Award Costs,Scholar,PIN033751,1065,
DFID,CSC,28/06/2018,Scholar Stipend,Award Costs,Scholar,PIN033752,1065,
DFID,CSC,28/06/2018,Scholar Stipend,Award Costs,Scholar,PIN033753,3195,
DFID,CSC,28/06/2018,Scholar Stipend,Award Costs,Scholar,PIN033754,3195,
DFID,CSC,28/06/2018,Scholar Stipend,Award Costs,Scholar,PIN033755,1065,
DFID,CSC,28/06/2018,Scholar Stipend,Award Costs,Scholar,PIN033756,3195,
DFID,CSC,28/06/2018,Scholar Stipend,Award Costs,Scholar,PIN033757,3195,
DFID,CSC,28/06/2018,Scholar Stipend,Award Costs,Scholar,PIN033758,3195,
DFID,CSC,28/06/2018,Scholar Stipend,Award Costs,Scholar,PIN033759,3195,
DFID,CSC,28/06/2018,Scholar Stipend,Award Costs,Scholar,PIN033760,3918,
DFID,CSC,28/06/2018,Scholar Stipend,Award Costs,Scholar,PIN033761,3195,
DFID,CSC,28/06/2018,Scholar Stipend,Award Costs,Scholar,PIN033762,2724.83,
BEIS,CSC,28/06/2018,Scholar Stipend,Award Costs,Scholar,PIN033763,6057,
BEIS,CSC,28/06/2018,Scholar Stipend,Award Costs,Scholar,PIN033764,4881,
BEIS,CSC,28/06/2018,Scholar Stipend,Award Costs,Scholar,PIN033765,4881,
BEIS,CSC,28/06/2018,Scholar Stipend,Award Costs,Scholar,PIN033766,4881,
BEIS,CSC,28/06/2018,Scholar Stipend,Award Costs,Scholar,PIN033767,4881,
BEIS,CSC,28/06/2018,Scholar Stipend,Award Costs,Scholar,PIN033768,4881,
BEIS,CSC,28/06/2018,Scholar Stipend,Award Costs,Scholar,PIN033769,4881,
BEIS,CSC,28/06/2018,Scholar Stipend,Award Costs,Scholar,PIN033770,4881,
DFID,CSC,28/06/2018,Scholar Stipend,Award Costs,Scholar,PIN033771,3195,
DFID,CSC,28/06/2018,Scholar Stipend,Award Costs,Scholar,PIN033772,2612,
DFID,CSC,28/06/2018,Scholar Stipend,Award Costs,Scholar,PIN033773,2130,
DFID,CSC,28/06/2018,Scholar Stipend,Award Costs,Scholar,PIN033774,3195,
DFID,CSC,28/06/2018,Scholar Stipend,Award Costs,Scholar,PIN033775,3195,
DFID,CSC,28/06/2018,Scholar Stipend,Award Costs,Scholar,PIN033776,3195,
DFID,CSC,28/06/2018,Scholar Stipend,Award Costs,Scholar,PIN033777,1065,
DFID,CSC,28/06/2018,Scholar Stipend,Award Costs,Scholar,PIN033778,3195,
DFID,CSC,28/06/2018,Scholar Stipend,Award Costs,Scholar,PIN033779,3195,
DFID,CSC,28/06/2018,Scholar Stipend,Award Costs,Scholar,PIN033780,2321.9,
DFID,CSC,28/06/2018,Scholar Stipend,Award Costs,Scholar,PIN033781,2130,
DFID,CSC,28/06/2018,Scholar Stipend,Award Costs,Scholar,PIN033782,3195,
DFID,CSC,28/06/2018,Scholar Stipend,Award Costs,Scholar,PIN033783,3195,
DFID,CSC,28/06/2018,Scholar Stipend,Award Costs,Scholar,PIN033784,3195,
DFID,CSC,28/06/2018,Scholar Stipend,Award Costs,Scholar,PIN033785,2654.85,
DFID,CSC,28/06/2018,Scholar Stipend,Award Costs,Scholar,PIN033786,3195,
DFID,CSC,28/06/2018,Scholar Stipend,Award Costs,Scholar,PIN033787,1065,
DFID,CSC,28/06/2018,Scholar Stipend,Award Costs,Scholar,PIN033788,3918,
DFID,CSC,28/06/2018,Scholar Stipend,Award Costs,Scholar,PIN033789,3856.32,
DFID,CSC,28/06/2018,Scholar Stipend,Award Costs,Scholar,PIN033790,2969.75,
DFID,CSC,28/06/2018,Scholar Stipend,Award Costs,Scholar,PIN033791,3195,
DFID,CSC,28/06/2018,Scholar Stipend,Award Costs,Scholar,PIN033792,2934.76,
DFID,CSC,28/06/2018,Scholar Stipend,Award Costs,Scholar,PIN033793,3856.32,
BEIS,CSC,28/06/2018,Scholar Stipend,Award Costs,Scholar,PIN033794,4881,
BEIS,CSC,28/06/2018,Scholar Stipend,Award Costs,Scholar,PIN033795,4881,
BEIS,CSC,28/06/2018,Scholar Stipend,Award Costs,Scholar,PIN033796,4881,
BEIS,CSC,28/06/2018,Scholar Stipend,Award Costs,Scholar,PIN033797,4881,
BEIS,CSC,28/06/2018,Scholar Stipend,Award Costs,Scholar,PIN033798,4881,
BEIS,CSC,28/06/2018,Scholar Stipend,Award Costs,Scholar,PIN033799,4881,
DFID,CSC,28/06/2018,Scholar Stipend,Award Costs,Scholar,PIN033800,3195,
DFID,CSC,28/06/2018,Scholar Stipend,Award Costs,Scholar,PIN033801,1065,
DFID,CSC,28/06/2018,Scholar Stipend,Award Costs,Scholar,PIN033802,3195,
DFID,CSC,28/06/2018,Scholar Stipend,Award Costs,Scholar,PIN033803,3195,
DFID,CSC,28/06/2018,Scholar Stipend,Award Costs,Scholar,PIN033804,3195,
DFID,CSC,28/06/2018,Scholar Stipend,Award Costs,Scholar,PIN033805,3918,
BEIS,CSC,28/06/2018,Scholar Stipend,Award Costs,Scholar,PIN033806,4881,
BEIS,CSC,28/06/2018,Scholar Stipend,Award Costs,Scholar,PIN033807,4881,
DFID,CSC,28/06/2018,Scholar Stipend,Award Costs,Scholar,PIN033808,3195,
DFID,CSC,28/06/2018,Scholar Stipend,Award Costs,Scholar,PIN033810,3918,
DFID,CSC,28/06/2018,Scholar Stipend,Award Costs,Scholar,PIN033811,2130,
DFID,CSC,28/06/2018,Scholar Stipend,Award Costs,Scholar,PIN033812,3195,
DFID,CSC,28/06/2018,Scholar Stipend,Award Costs,Scholar,PIN033813,1306,
DFID,CSC,28/06/2018,Scholar Stipend,Award Costs,Scholar,PIN033814,2390,
DFID,CSC,28/06/2018,Scholar Stipend,Award Costs,Scholar,PIN033815,2794.8,
DFID,CSC,28/06/2018,Scholar Stipend,Award Costs,Scholar,PIN033816,2514.89,
DFID,CSC,28/06/2018,Scholar Stipend,Award Costs,Scholar,PIN033817,3212.71,
DFID,CSC,28/06/2018,Scholar Stipend,Award Costs,Scholar,PIN033818,3195,
DFID,CSC,28/06/2018,Scholar Stipend,Award Costs,Scholar,PIN033819,2829.79,
DFID,CSC,28/06/2018,Scholar Stipend,Award Costs,Scholar,PIN033820,2130,
DFID,CSC,28/06/2018,Scholar Stipend,Award Costs,Scholar,PIN033821,3195,
DFID,CSC,28/06/2018,Scholar Stipend,Award Costs,Scholar,PIN033822,3195,
DFID,CSC,28/06/2018,Scholar Stipend,Award Costs,Scholar,PIN033823,3195,
DFID,CSC,28/06/2018,Scholar Stipend,Award Costs,Scholar,PIN033824,3195,
DFID,CSC,28/06/2018,Scholar Stipend,Award Costs,Scholar,PIN033825,3195,
DFID,CSC,28/06/2018,Scholar Stipend,Award Costs,Scholar,PIN033826,1065,
DFID,CSC,28/06/2018,Scholar Stipend,Award Costs,Scholar,PIN033827,1204.96,
DFID,CSC,28/06/2018,Scholar Stipend,Award Costs,Scholar,PIN033828,3195,
DFID,CSC,28/06/2018,Scholar Stipend,Award Costs,Scholar,PIN033829,3195,
DFID,CSC,28/06/2018,Scholar Stipend,Award Costs,Scholar,PIN033830,2130,
DFID,CSC,28/06/2018,Scholar Stipend,Award Costs,Scholar,PIN033831,3074.72,
DFID,CSC,28/06/2018,Scholar Stipend,Award Costs,Scholar,PIN033832,3195,
DFID,CSC,28/06/2018,Scholar Stipend,Award Costs,Scholar,PIN033833,3195,
DFID,CSC,28/06/2018,Scholar Stipend,Award Costs,Scholar,PIN033834,3195,
DFID,CSC,28/06/2018,Scholar Stipend,Award Costs,Scholar,PIN033835,3341.43,
DFID,CSC,28/06/2018,Scholar Stipend,Award Costs,Scholar,PIN033836,3195,
DFID,CSC,28/06/2018,Scholar Stipend,Award Costs,Scholar,PIN033837,3195,
DFID,CSC,28/06/2018,Scholar Stipend,Award Costs,Scholar,PIN033838,3195,
DFID,CSC,28/06/2018,Scholar Stipend,Award Costs,Scholar,PIN033839,3195,
BEIS,CSC,28/06/2018,Scholar Stipend,Award Costs,Scholar,PIN033840,6057,
DFID,CSC,28/06/2018,Scholar Stipend,Award Costs,Scholar,PIN033841,2130,
DFID,CSC,28/06/2018,Scholar Stipend,Award Costs,Scholar,PIN033842,2130,
DFID,CSC,28/06/2018,Scholar Stipend,Award Costs,Scholar,PIN033843,2130,
DFID,CSC,28/06/2018,Scholar Stipend,Award Costs,Scholar,PIN033844,3195,
DFID,CSC,28/06/2018,Scholar Stipend,Award Costs,Scholar,PIN033845,3195,
DFID,CSC,28/06/2018,Scholar Stipend,Award Costs,Scholar,PIN033846,3254,
DFID,CSC,28/06/2018,Scholar Stipend,Award Costs,Scholar,PIN033847,3195,
DFID,CSC,28/06/2018,Scholar Stipend,Award Costs,Scholar,PIN033848,2130,
DFID,CSC,28/06/2018,Scholar Stipend,Award Costs,Scholar,PIN033849,3074.72,
DFID,CSC,28/06/2018,Scholar Stipend,Award Costs,Scholar,PIN033850,2130,
DFID,CSC,28/06/2018,Scholar Stipend,Award Costs,Scholar,PIN033851,3195,
DFID,CSC,28/06/2018,Scholar Stipend,Award Costs,Scholar,PIN033852,3918,
DFID,CSC,28/06/2018,Scholar Stipend,Award Costs,Scholar,PIN033853,3195,
DFID,CSC,28/06/2018,Scholar Stipend,Award Costs,Scholar,PIN033854,3195,
DFID,CSC,28/06/2018,Scholar Stipend,Award Costs,Scholar,PIN033855,3195,
DFID,CSC,28/06/2018,Scholar Stipend,Award Costs,Scholar,PIN033856,3641.78,
DFID,CSC,28/06/2018,Scholar Stipend,Award Costs,Scholar,PIN033857,3856.32,
DFID,CSC,28/06/2018,Scholar Stipend,Award Costs,Scholar,PIN033858,2794.8,
DFID,CSC,28/06/2018,Scholar Stipend,Award Costs,Scholar,PIN033859,2969.75,
DFID,CSC,28/06/2018,Scholar Stipend,Award Costs,Scholar,PIN033860,3918,
DFID,CSC,28/06/2018,Scholar Stipend,Award Costs,Scholar,PIN033861,2130,
DFID,CSC,28/06/2018,Scholar Stipend,Award Costs,Scholar,PIN033862,3195,
DFID,CSC,28/06/2018,Scholar Stipend,Award Costs,Scholar,PIN033863,2969.75,
DFID,CSC,28/06/2018,Scholar Stipend,Award Costs,Scholar,PIN033865,3195,
DFID,CSC,28/06/2018,Scholar Stipend,Award Costs,Scholar,PIN033866,2130,
DFID,CSC,28/06/2018,Scholar Stipend,Award Costs,Scholar,PIN033867,2130,
DFID,CSC,28/06/2018,Scholar Stipend,Award Costs,Scholar,PIN033868,3195,
DFID,CSC,28/06/2018,Scholar Stipend,Award Costs,Scholar,PIN033869,2130,
DFID,CSC,28/06/2018,Scholar Stipend,Award Costs,Scholar,PIN033870,3195,
DFID,CSC,28/06/2018,Scholar Stipend,Award Costs,Scholar,PIN033871,3195,
DFID,CSC,28/06/2018,Scholar Stipend,Award Costs,Scholar,PIN033872,3195,
DFID,CSC,28/06/2018,Scholar Stipend,Award Costs,Scholar,PIN033873,3195,
DFID,CSC,28/06/2018,Scholar Stipend,Award Costs,Scholar,PIN033874,3355.94,
DFID,CSC,28/06/2018,Scholar Stipend,Award Costs,Scholar,PIN033875,3918,
DFID,CSC,28/06/2018,Scholar Stipend,Award Costs,Scholar,PIN033876,3195,
DFID,CSC,28/06/2018,Scholar Stipend,Award Costs,Scholar,PIN033877,3195,
DFID,CSC,28/06/2018,Scholar Stipend,Award Costs,Scholar,PIN033878,3899.22,
DFID,CSC,28/06/2018,Scholar Stipend,Award Costs,Scholar,PIN033879,3195,
DFID,CSC,28/06/2018,Scholar Stipend,Award Costs,Scholar,PIN033880,3195,
DFID,CSC,28/06/2018,Scholar Stipend,Award Costs,Scholar,PIN033881,3195,
DFID,CSC,28/06/2018,Scholar Stipend,Award Costs,Scholar,PIN033882,3195,
DFID,CSC,28/06/2018,Scholar Stipend,Award Costs,Scholar,PIN033883,3918,
DFID,CSC,28/06/2018,Scholar Stipend,Award Costs,Scholar,PIN033884,3144.7,
DFID,CSC,28/06/2018,Scholar Stipend,Award Costs,Scholar,PIN033885,2969.75,
DFID,CSC,28/06/2018,Scholar Stipend,Award Costs,Scholar,PIN033886,2934.76,
DFID,CSC,28/06/2018,Scholar Stipend,Award Costs,Scholar,PIN033887,3856.32,
DFID,CSC,28/06/2018,Scholar Stipend,Award Costs,Scholar,PIN033888,2130,
DFID,CSC,28/06/2018,Scholar Stipend,Award Costs,Scholar,PIN033889,3641.78,
DFID,CSC,28/06/2018,Scholar Stipend,Award Costs,Scholar,PIN033890,3195,
DFID,CSC,28/06/2018,Scholar Stipend,Award Costs,Scholar,PIN033891,3195,
DFID,CSC,28/06/2018,Scholar Stipend,Award Costs,Scholar,PIN033892,3195,
DFID,CSC,28/06/2018,Scholar Stipend,Award Costs,Scholar,PIN033893,1306,
DFID,CSC,28/06/2018,Scholar Stipend,Award Costs,Scholar,PIN033894,3195,
DFID,CSC,28/06/2018,Scholar Stipend,Award Costs,Scholar,PIN033895,3195,
DFID,CSC,28/06/2018,Scholar Stipend,Award Costs,Scholar,PIN033896,2596.58,
BEIS,CSC,28/06/2018,Scholar Stipend,Award Costs,Scholar,PIN033897,4881,
DFID,CSC,28/06/2018,Scholar Stipend,Award Costs,Scholar,PIN033898,2829.79,
DFID,CSC,28/06/2018,Scholar Stipend,Award Costs,Scholar,PIN033899,1065,
DFID,CSC,28/06/2018,Scholar Stipend,Award Costs,Scholar,PIN033900,3195,
DFID,CSC,28/06/2018,Scholar Stipend,Award Costs,Scholar,PIN033901,3918,
DFID,CSC,28/06/2018,Scholar Stipend,Award Costs,Scholar,PIN033902,3195,
DFID,CSC,28/06/2018,Scholar Stipend,Award Costs,Scholar,PIN033903,3195,
DFID,CSC,28/06/2018,Scholar Stipend,Award Costs,Scholar,PIN033904,3195,
DFID,CSC,28/06/2018,Scholar Stipend,Award Costs,Scholar,PIN033905,3195,
DFID,CSC,28/06/2018,Scholar Stipend,Award Costs,Scholar,PIN033906,3195,
DFID,CSC,28/06/2018,Scholar Stipend,Award Costs,Scholar,PIN033907,1306,
DFID,CSC,28/06/2018,Scholar Stipend,Award Costs,Scholar,PIN033908,3195,
DFID,CSC,28/06/2018,Scholar Stipend,Award Costs,Scholar,PIN033909,1065,
DFID,CSC,28/06/2018,Scholar Stipend,Award Costs,Scholar,PIN033910,1065,
DFID,CSC,28/06/2018,Scholar Stipend,Award Costs,Scholar,PIN033911,1065,
DFID,CSC,28/06/2018,Scholar Stipend,Award Costs,Scholar,PIN033912,3195,
DFID,CSC,28/06/2018,Scholar Stipend,Award Costs,Scholar,PIN033913,1863.8,
DFID,CSC,28/06/2018,Scholar Stipend,Award Costs,Scholar,PIN033914,2724.83,
DFID,CSC,28/06/2018,Scholar Stipend,Award Costs,Scholar,PIN033915,2514.89,
DFID,CSC,28/06/2018,Scholar Stipend,Award Costs,Scholar,PIN033916,2479.9,
DFID,CSC,28/06/2018,Scholar Stipend,Award Costs,Scholar,PIN033917,2654.85,
DFID,CSC,28/06/2018,Scholar Stipend,Award Costs,Scholar,PIN033918,3315.72,
DFID,CSC,28/06/2018,Scholar Stipend,Award Costs,Scholar,PIN033919,3195,
DFID,CSC,28/06/2018,Scholar Stipend,Award Costs,Scholar,PIN033920,3195,
DFID,CSC,28/06/2018,Scholar Stipend,Award Costs,Scholar,PIN033921,3255.61,
DFID,CSC,28/06/2018,Scholar Stipend,Award Costs,Scholar,PIN033922,3195,
DFID,CSC,28/06/2018,Scholar Allowances,Award Costs,Scholar,PIN033924,687,
DFID,CSC,28/06/2018,Scholar Allowances,Award Costs,Scholar,PIN033926,687,
DFID,CSC,28/06/2018,Scholar Allowances,Award Costs,Scholar,PIN033927,596.72,
DFID,CSC,28/06/2018,Scholar Allowances,Award Costs,Scholar,PIN033928,687,
DFID,CSC,28/06/2018,Scholar Allowances,Award Costs,Scholar,PIN033929,687,
DFID,CSC,28/06/2018,Scholar Allowances,Award Costs,Scholar,PIN033931,682,
DFID,CSC,28/06/2018,Scholar Allowances,Award Costs,Scholar,PIN033932,687,
DFID,CSC,28/06/2018,Scholar Allowances,Award Costs,Scholar,PIN033934,687,
DFID,CSC,28/06/2018,Scholar Allowances,Award Costs,Scholar,PIN033935,687,
DFID,CSC,28/06/2018,Scholar Allowances,Award Costs,Scholar,PIN033936,687,
DFID,CSC,28/06/2018,Scholar Allowances,Award Costs,Scholar,PIN033938,687,
DFID,CSC,28/06/2018,Scholar Allowances,Award Costs,Scholar,PIN033939,687,
DFID,CSC,28/06/2018,Scholar Allowances,Award Costs,Scholar,PIN033940,687,
DFID,CSC,28/06/2018,Scholar Allowances,Award Costs,Scholar,PIN033941,687,
DFID,CSC,28/06/2018,Scholar Allowances,Award Costs,Scholar,PIN033942,1023,
DFID,CSC,28/06/2018,Scholar Allowances,Award Costs,Scholar,PIN033943,1707,
DFID,CSC,28/06/2018,Scholar Allowances,Award Costs,Scholar,PIN033944,687,
DFID,CSC,28/06/2018,Scholar Allowances,Award Costs,Scholar,PIN033945,1023,
DFID,CSC,28/06/2018,Scholar Allowances,Award Costs,Scholar,PIN033947,1023,
DFID,CSC,28/06/2018,Scholar Allowances,Award Costs,Scholar,PIN033948,984.49,
DFID,CSC,28/06/2018,Scholar Allowances,Award Costs,Scholar,PIN033949,682,
DFID,CSC,28/06/2018,Scholar Allowances,Award Costs,Scholar,PIN033950,1023,
DFID,CSC,28/06/2018,Scholar Allowances,Award Costs,Scholar,PIN033952,687,
DFID,CSC,28/06/2018,Scholar Allowances,Award Costs,Scholar,PIN033954,687,
DFID,CSC,28/06/2018,Scholar Allowances,Award Costs,Scholar,PIN033955,901.4,
DFID,CSC,28/06/2018,Scholar Allowances,Award Costs,Scholar,PIN033956,906,
DFID,CSC,28/06/2018,Scholar Allowances,Award Costs,Scholar,PIN033957,872.46,
DFID,CSC,28/06/2018,Scholar Allowances,Award Costs,Scholar,PIN033958,1359,
DFID,CSC,28/06/2018,Scholar Allowances,Award Costs,Scholar,PIN033960,1023,
DFID,CSC,28/06/2018,Scholar Allowances,Award Costs,Scholar,PIN033961,687,
DFID,CSC,28/06/2018,Scholar Allowances,Award Costs,Scholar,PIN033962,1327.95,
DFID,CSC,28/06/2018,Scholar Allowances,Award Costs,Scholar,PIN033963,1359,
DFID,CSC,28/06/2018,Scholar Allowances,Award Costs,Scholar,PIN033964,1359,
DFID,CSC,28/06/2018,Scholar Allowances,Award Costs,Scholar,PIN033965,906,
DFID,CSC,28/06/2018,Scholar Allowances,Award Costs,Scholar,PIN033966,687,
DFID,CSC,28/06/2018,Scholar Allowances,Award Costs,Scholar,PIN033967,682,
DFID,CSC,28/06/2018,Scholar Allowances,Award Costs,Scholar,PIN033968,914,
DFID,CSC,28/06/2018,Scholar Allowances,Award Costs,Scholar,PIN033969,1023,
DFID,CSC,28/06/2018,Scholar Allowances,Award Costs,Scholar,PIN033970,687,
DFID,CSC,28/06/2018,Scholar Allowances,Award Costs,Scholar,PIN033971,1023,
DFID,CSC,28/06/2018,Scholar Allowances,Award Costs,Scholar,PIN033974,687,
DFID,CSC,28/06/2018,Scholar Allowances,Award Costs,Scholar,PIN033976,687,
DFID,CSC,28/06/2018,Scholar Allowances,Award Costs,Scholar,PIN033977,1359,
DFID,CSC,28/06/2018,Scholar Allowances,Award Costs,Scholar,PIN033978,906,
DFID,CSC,28/06/2018,Scholar Allowances,Award Costs,Scholar,PIN033979,687,
DFID,CSC,28/06/2018,Scholar Allowances,Award Costs,Scholar,PIN033981,1023,
DFID,CSC,28/06/2018,Scholar Allowances,Award Costs,Scholar,PIN033982,687,
DFID,CSC,28/06/2018,Scholar Allowances,Award Costs,Scholar,PIN033984,1023,
DFID,CSC,28/06/2018,Scholar Allowances,Award Costs,Scholar,PIN033985,1023,
DFID,CSC,28/06/2018,Scholar Allowances,Award Costs,Scholar,PIN033986,687,
DFID,CSC,28/06/2018,Scholar Allowances,Award Costs,Scholar,PIN033987,1371,
DFID,CSC,28/06/2018,Scholar Allowances,Award Costs,Scholar,PIN033988,687,
DFID,CSC,28/06/2018,Scholar Allowances,Award Costs,Scholar,PIN033990,1359,
DFID,CSC,28/06/2018,Scholar Allowances,Award Costs,Scholar,PIN033991,687,
DFID,CSC,28/06/2018,Scholar Allowances,Award Costs,Scholar,PIN033992,1307.84,
DFID,CSC,28/06/2018,Scholar Allowances,Award Costs,Scholar,PIN033993,687,
DFID,CSC,28/06/2018,Scholar Allowances,Award Costs,Scholar,PIN033994,1362,
DFID,CSC,28/06/2018,Scholar Allowances,Award Costs,Scholar,PIN033995,687,
DFID,CSC,28/06/2018,Scholar Allowances,Award Costs,Scholar,PIN033996,1310.84,
DFID,CSC,28/06/2018,Scholar Allowances,Award Costs,Scholar,PIN033997,1023,
DFID,CSC,28/06/2018,Scholar Allowances,Award Costs,Scholar,PIN033998,687,
DFID,CSC,28/06/2018,Scholar Allowances,Award Costs,Scholar,PIN033999,687,
DFID,CSC,28/06/2018,Scholar Allowances,Award Costs,Scholar,PIN034000,687,
DFID,CSC,28/06/2018,Scholar Allowances,Award Costs,Scholar,PIN034001,687,
DFID,CSC,28/06/2018,Scholar Allowances,Award Costs,Scholar,PIN034002,1023,
DFID,CSC,28/06/2018,Scholar Allowances,Award Costs,Scholar,PIN034003,1023,
DFID,CSC,28/06/2018,Scholar Allowances,Award Costs,Scholar,PIN034007,687,
DFID,CSC,28/06/2018,Scholar Allowances,Award Costs,Scholar,PIN034009,687,
DFID,CSC,28/06/2018,Scholar Allowances,Award Costs,Scholar,PIN034010,596.72,
DFID,CSC,28/06/2018,Scholar Allowances,Award Costs,Scholar,PIN034011,687,
DFID,CSC,28/06/2018,Scholar Allowances,Award Costs,Scholar,PIN034012,687,
DFID,CSC,28/06/2018,Scholar Allowances,Award Costs,Scholar,PIN034013,687,
DFID,CSC,28/06/2018,Scholar Allowances,Award Costs,Scholar,PIN034016,687,
DFID,CSC,28/06/2018,Scholar Allowances,Award Costs,Scholar,PIN034019,687,
DFID,CSC,28/06/2018,Scholar Allowances,Award Costs,Scholar,PIN034020,687,
DFID,CSC,28/06/2018,Scholar Allowances,Award Costs,Scholar,PIN034021,687,
DFID,CSC,28/06/2018,Scholar Allowances,Award Costs,Scholar,PIN034022,687,
DFID,CSC,28/06/2018,Scholar Allowances,Award Costs,Scholar,PIN034024,687,
DFID,CSC,28/06/2018,Scholar Allowances,Award Costs,Scholar,PIN034025,687,
DFID,CSC,28/06/2018,Scholar Allowances,Award Costs,Scholar,PIN034026,687,
DFID,CSC,28/06/2018,Scholar Allowances,Award Costs,Scholar,PIN034027,687,
DFID,CSC,28/06/2018,Scholar Allowances,Award Costs,Scholar,PIN034028,687,
DFID,CSC,28/06/2018,Scholar Allowances,Award Costs,Scholar,PIN034029,687,
DFID,CSC,28/06/2018,Scholar Allowances,Award Costs,Scholar,PIN034030,687,
DFID,CSC,28/06/2018,Scholar Allowances,Award Costs,Scholar,PIN034031,687,
DFID,CSC,28/06/2018,Scholar Allowances,Award Costs,Scholar,PIN034032,687,
DFID,CSC,28/06/2018,Scholar Allowances,Award Costs,Scholar,PIN034033,687,
DFID,CSC,28/06/2018,Scholar Allowances,Award Costs,Scholar,PIN034034,687,
DFID,CSC,28/06/2018,Scholar Allowances,Award Costs,Scholar,PIN034035,1197.66,
DFID,CSC,28/06/2018,Scholar Allowances,Award Costs,Scholar,PIN034037,687,
DFID,CSC,28/06/2018,Scholar Allowances,Award Costs,Scholar,PIN034038,687,
DFID,CSC,28/06/2018,Scholar Allowances,Award Costs,Scholar,PIN034039,687,
DFID,CSC,28/06/2018,Scholar Allowances,Award Costs,Scholar,PIN034040,687,
DFID,CSC,28/06/2018,Scholar Allowances,Award Costs,Scholar,PIN034041,661.14,
DFID,CSC,28/06/2018,Scholar Allowances,Award Costs,Scholar,PIN034045,687,
DFID,CSC,28/06/2018,Scholar Allowances,Award Costs,Scholar,PIN034047,687,
DFID,CSC,28/06/2018,Scholar Allowances,Award Costs,Scholar,PIN034049,631.04,
DFID,CSC,28/06/2018,Scholar Allowances,Award Costs,Scholar,PIN034050,687,
DFID,CSC,28/06/2018,Scholar Allowances,Award Costs,Scholar,PIN034052,585.9,
DFID,CSC,28/06/2018,Scholar Allowances,Award Costs,Scholar,PIN034053,687,
DFID,CSC,28/06/2018,Scholar Allowances,Award Costs,Scholar,PIN034055,687,
DFID,CSC,28/06/2018,Scholar Allowances,Award Costs,Scholar,PIN034056,687,
DFID,CSC,28/06/2018,Scholar Allowances,Award Costs,Scholar,PIN034057,687,
DFID,CSC,28/06/2018,Scholar Allowances,Award Costs,Scholar,PIN034058,687,
DFID,CSC,28/06/2018,Scholar Allowances,Award Costs,Scholar,PIN034059,687,
DFID,CSC,28/06/2018,Scholar Allowances,Award Costs,Scholar,PIN034063,687,
DFID,CSC,28/06/2018,Scholar Allowances,Award Costs,Scholar,PIN034064,687,
DFID,CSC,28/06/2018,Scholar Allowances,Award Costs,Scholar,PIN034068,687,
DFID,CSC,28/06/2018,Scholar Allowances,Award Costs,Scholar,PIN034070,687,
DFID,CSC,28/06/2018,Scholar Allowances,Award Costs,Scholar,PIN034071,1374,
DFID,CSC,28/06/2018,Scholar Allowances,Award Costs,Scholar,PIN034072,687,
DFID,CSC,28/06/2018,Scholar Allowances,Award Costs,Scholar,PIN034074,687,
DFID,CSC,28/06/2018,Scholar Allowances,Award Costs,Scholar,PIN034076,687,
DFID,CSC,28/06/2018,Scholar Allowances,Award Costs,Scholar,PIN034077,687,
DFID,CSC,28/06/2018,Scholar Allowances,Award Costs,Scholar,PIN034079,687,
DFID,CSC,28/06/2018,Scholar Allowances,Award Costs,Scholar,PIN034080,687,
DFID,CSC,28/06/2018,Scholar Allowances,Award Costs,Scholar,PIN034082,687,
DFID,CSC,28/06/2018,Scholar Allowances,Award Costs,Scholar,PIN034085,687,
DFID,CSC,28/06/2018,Scholar Allowances,Award Costs,Scholar,PIN034086,687,
DFID,CSC,28/06/2018,Scholar Allowances,Award Costs,Scholar,PIN034087,661.14,
DFID,CSC,28/06/2018,Scholar Allowances,Award Costs,Scholar,PIN034088,687,
DFID,CSC,28/06/2018,Scholar Allowances,Award Costs,Scholar,PIN034089,661.14,
DFID,CSC,28/06/2018,Scholar Allowances,Award Costs,Scholar,PIN034090,687,
DFID,CSC,28/06/2018,Scholar Allowances,Award Costs,Scholar,PIN034091,687,
DFID,CSC,28/06/2018,Scholar Allowances,Award Costs,Scholar,PIN034092,687,
DFID,CSC,28/06/2018,Scholar Allowances,Award Costs,Scholar,PIN034093,687,
DFID,CSC,28/06/2018,Scholar Allowances,Award Costs,Scholar,PIN034094,687,
DFID,CSC,28/06/2018,Scholar Allowances,Award Costs,Scholar,PIN034095,687,
DFID,CSC,28/06/2018,Scholar Allowances,Award Costs,Scholar,PIN034096,687,
DFID,CSC,28/06/2018,Scholar Allowances,Award Costs,Scholar,PIN034097,687,
DFID,CSC,28/06/2018,Scholar Allowances,Award Costs,Scholar,PIN034129,600,
BEIS,CSC,28/06/2018,Scholar Stipend,Award Costs,Scholar,PIN034203,4881,
DFID,CSC,29/06/2018,Tuition Fee,Award Costs,University of Leicester,PIN034205,1460,
DFID,CSC,29/06/2018,Tuition Fee,Award Costs,University of Leicester,PIN034206,1460,
DFID,CSC,29/06/2018,Tuition Fee,Award Costs,University of Leicester,PIN034207,1460,
DFID,CSC,29/06/2018,Tuition Fee,Award Costs,University of Leicester,PIN034208,548,
DFID,CSC,29/06/2018,Tuition Fee,Award Costs,University of Leicester,PIN034209,1460,
DFID,CSC,29/06/2018,Tuition Fee,Award Costs,University of Leicester,PIN034210,1460,
DFID,CSC,29/06/2018,Tuition Fee,Award Costs,The Open University,PIN034211,-3962,
DFID,CSC,29/06/2018,Tuition Fee,Award Costs,The Open University,PIN034212,96180.82,Tuition fees for 28 scholars
DFID,CSC,29/06/2018,Award Support Costs,Award Costs,University of Cambridge,PIN034218,5000,
DFID,CSC,29/06/2018,Award Support Costs,Award Costs,University of Glasgow,PIN034219,5000,
DFID,CSC,29/06/2018,Scholar Travel,Award Costs,Liverpool John Moores University,PIN034221,1134.57,
DFID,CSC,29/06/2018,Scholar Allowances,Award Costs,Liverpool John Moores University,PIN034221,200,
DFID,CSC,29/06/2018,Visa Costs,Award Costs,Liverpool John Moores University,PIN034221,73.65,
DFID,CSC,29/06/2018,Scholar Travel,Award Costs,Liverpool John Moores University,PIN034221,1458.4,
DFE,CSC,29/06/2018,Scholar Allowances,Award Costs,Queen Mary University of London,PIN034222,414,
DFE,CSC,29/06/2018,Tuition Fee,Award Costs,Queen Mary University of London,PIN034222,15672,
DFE,CSC,29/06/2018,Scholar Allowances,Award Costs,Queen Mary University of London,PIN034222,600,
DFE,CSC,29/06/2018,Scholar Allowances,Award Costs,Queen Mary University of London,PIN034222,170,
DFE,CSC,29/06/2018,Scholar Travel,Award Costs,Queen Mary University of London,PIN034222,364,
DFID,CSC,29/06/2018,Scholar Allowances,Award Costs,Scholar,PIN034227,300,
DFID,CSC,29/06/2018,Scholar Stipend,Award Costs,Scholar,PIN034227,3918,
DFID,CSC,29/06/2018,Scholar Allowances,Award Costs,Scholar,PIN034228,225,
DFID,CSC,29/06/2018,Scholar Stipend,Award Costs,Scholar,PIN034228,3039.73,
DFID,CSC,29/06/2018,Scholar Allowances,Award Costs,Scholar,PIN034229,225,
DFID,CSC,29/06/2018,Scholar Stipend,Award Costs,Scholar,PIN034229,3641.78,
DFID,CSC,29/06/2018,Scholar Allowances,Award Costs,Scholar,PIN034230,300,
DFID,CSC,29/06/2018,Scholar Stipend,Award Costs,Scholar,PIN034230,1904.75,
DFID,CSC,29/06/2018,Scholar Allowances,Award Costs,Scholar,PIN034231,300,
DFID,CSC,29/06/2018,Scholar Stipend,Award Costs,Scholar,PIN034231,3918,
DFID,CSC,29/06/2018,Scholar Allowances,Award Costs,Scholar,PIN034232,300,
DFID,CSC,29/06/2018,Scholar Stipend,Award Costs,Scholar,PIN034232,1414.9,
DFID,CSC,29/06/2018,Scholar Allowances,Award Costs,Scholar,PIN034233,250,
DFID,CSC,29/06/2018,Scholar Stipend,Award Costs,Scholar,PIN034233,2619.86,
DFID,CSC,29/06/2018,Scholar Stipend,Award Costs,Scholar,PIN034234,3195,
DFID,CSC,29/06/2018,Scholar Allowances,Award Costs,Scholar,PIN034235,200,
DFID,CSC,29/06/2018,Scholar Stipend,Award Costs,Scholar,PIN034235,2584.86,
DFID,CSC,29/06/2018,Scholar Stipend,Award Costs,Scholar,PIN034236,1065,
DFID,CSC,29/06/2018,Scholar Stipend,Award Costs,Scholar,PIN034237,3195,
DFID,CSC,29/06/2018,Scholar Allowances,Award Costs,Scholar,PIN034238,200,
DFID,CSC,29/06/2018,Scholar Stipend,Award Costs,Scholar,PIN034238,3641.78,
DFID,CSC,29/06/2018,Scholar Allowances,Award Costs,Scholar,PIN034239,250,
DFID,CSC,29/06/2018,Scholar Stipend,Award Costs,Scholar,PIN034239,2969.75,
DFID,CSC,29/06/2018,Scholar Allowances,Award Costs,Scholar,PIN034240,250,
DFID,CSC,29/06/2018,Scholar Stipend,Award Costs,Scholar,PIN034240,2374.93,
DFID,CSC,29/06/2018,Scholar Allowances,Award Costs,Scholar,PIN034241,250,
DFID,CSC,29/06/2018,Scholar Stipend,Award Costs,Scholar,PIN034241,3513.06,
DFID,CSC,29/06/2018,Scholar Allowances,Award Costs,Scholar,PIN034242,250,
DFID,CSC,29/06/2018,Scholar Stipend,Award Costs,Scholar,PIN034242,2479.9,
DFID,CSC,29/06/2018,Scholar Allowances,Award Costs,Scholar,PIN034243,250,
DFID,CSC,29/06/2018,Scholar Stipend,Award Costs,Scholar,PIN034243,2724.83,
DFID,CSC,29/06/2018,Scholar Allowances,Award Costs,Scholar,PIN034244,250,
DFID,CSC,29/06/2018,Scholar Stipend,Award Costs,Scholar,PIN034244,3513.06,
DFID,CSC,29/06/2018,Scholar Allowances,Award Costs,Scholar,PIN034245,250,
DFID,CSC,29/06/2018,Scholar Stipend,Award Costs,Scholar,PIN034245,3195,
DFID,CSC,29/06/2018,Scholar Allowances,Award Costs,Scholar,PIN034246,350,
DFID,CSC,29/06/2018,Scholar Stipend,Award Costs,Scholar,PIN034246,2130,
DFID,CSC,29/06/2018,Scholar Allowances,Award Costs,Scholar,PIN034248,229,
DFID,CSC,29/06/2018,Scholar Stipend,Award Costs,Scholar,PIN034248,1065,
DFID,CSC,29/06/2018,Scholar Allowances,Award Costs,Scholar,PIN034249,300,
DFID,CSC,29/06/2018,Scholar Stipend,Award Costs,Scholar,PIN034249,2969.75,
DFID,CSC,29/06/2018,Scholar Allowances,Award Costs,Scholar,PIN034250,275,
DFID,CSC,29/06/2018,Scholar Stipend,Award Costs,Scholar,PIN034250,2164.98,
DFID,CSC,29/06/2018,Scholar Stipend,Award Costs,Scholar,PIN034251,4011.4,
DFID,CSC,29/06/2018,Scholar Stipend,Award Costs,Scholar,PIN034252,505.16,
DFID,CSC,29/06/2018,Scholar Stipend,Award Costs,Scholar,PIN034253,464.33,
DFID,CSC,29/06/2018,Scholar Stipend,Award Costs,Scholar,PIN034253,4038,
DFID,CSC,29/06/2018,Scholar Allowances,Award Costs,Scholar,PIN034253,200,
DFID,CSC,29/06/2018,Scholar Allowances,Award Costs,Scholar,PIN034253,200,
DFID,CSC,29/06/2018,Scholar Allowances,Award Costs,Scholar,PIN034253,400,
DFID,CSC,29/06/2018,Bank Charges,Admin Costs,MasterCard Prepaid Management Services Ltd,PIN034253,53.02,
DFID,CSC,04/06/2018,Engagement,Programme Costs,NatWest CC,NOM000754,189.2,
DFID,CSC,04/06/2018,Secretariat Travel,Programme Costs,NatWest CC,NOM000754,80.7,
DFID,CSC,04/06/2018,Engagement,Programme Costs,NatWest CC,NOM000754,309.4,
DFID,CSC,04/06/2018,Software Support / Licences,Admin Costs,NatWest CC,NOM000754,16.72,
DFID,CSC,04/06/2018,Scholar Engagement,Programme Costs,NatWest CC,NOM000754,57.5,
DFID,CSC,04/06/2018,Secretariat Travel,Admin Costs,NatWest CC,NOM000754,18.3,
